[Event "Titled Tuesday Blitz March 28 Early 2023"]
[White "Bernat, David"]
[Black "Godzwon, Iwo"]
[WhiteFideId "2099225"]
[BlackFideId "21802483"]
[WhiteElo "2423"]
[BlackElo "2284"]
[Result "0-1"]
[Round "03"]
[TimeControl "180+2"]
[Date "2023.03.28"]
[WhiteClock "0:00:04"]
[BlackClock "0:01:23"]

1. c4 {[%clk 0:02:50]}  Nf6 {[%clk 0:03:00]} 2. Nc3 {[%clk 0:02:50]}  e5 {[%clk 0:03:00]} 3. g3 {[%clk 0:02:51]}  Nc6 {[%clk 0:03:00]} 4. Bg2 {[%clk 0:02:51]}  Bc5 {[%clk 0:03:01]} 5. e3 {[%clk 0:02:51]}  O-O {[%clk 0:03:02]} 6. Nge2 {[%clk 0:02:52]}  d6 {[%clk 0:03:01]} 7. O-O {[%clk 0:02:52]}  a6 {[%clk 0:03:01]} 8. d4 {[%clk 0:02:51]}  Ba7 {[%clk 0:03:02]} 9. h3 {[%clk 0:02:50]}  Re8 {[%clk 0:03:02]} 10. Kh2 {[%clk 0:02:50]}  Bf5 {[%clk 0:03:02]} 11. g4 {[%clk 0:02:48]}  Bg6 {[%clk 0:03:03]} 12. f4 {[%clk 0:02:48]}  exf4 {[%clk 0:02:57]} 13. exf4 {[%clk 0:02:49]}  Be4 {[%clk 0:02:45]} 14. Nxe4 {[%clk 0:02:26]}  Nxe4 {[%clk 0:02:46]} 15. d5 {[%clk 0:02:23]}  Nb8 {[%clk 0:02:36]} 16. Qd3 {[%clk 0:02:06]}  Nc5 {[%clk 0:02:23]} 17. Qc2 {[%clk 0:02:06]}  a5 {[%clk 0:02:23]} 18. a3 {[%clk 0:01:56]}  a4 {[%clk 0:02:17]} 19. Nc3 {[%clk 0:01:57]}  Nbd7 {[%clk 0:02:17]} 20. Bd2 {[%clk 0:01:32]}  Nb3 {[%clk 0:02:17]} 21. Rae1 {[%clk 0:01:32]}  Ndc5 {[%clk 0:02:17]} 22. Be3 {[%clk 0:01:10]}  Qd7 {[%clk 0:02:06]} 23. Ne4 {[%clk 0:00:49]}  Nxe4 {[%clk 0:02:00]} 24. Bxe4 {[%clk 0:00:40]}  Bxe3 {[%clk 0:02:01]} 25. Rxe3 {[%clk 0:00:39]}  g6 {[%clk 0:01:54]} 26. f5 {[%clk 0:00:35]}  Re5 {[%clk 0:01:49]} 27. fxg6 {[%clk 0:00:35]}  hxg6 {[%clk 0:01:47]} 28. Ref3 {[%clk 0:00:17]}  Nd4 {[%clk 0:01:47]} 29. Qd3 {[%clk 0:00:13]}  Nxf3+ {[%clk 0:01:46]} 30. Bxf3 {[%clk 0:00:14]}  Rae8 {[%clk 0:01:47]} 31. Qc2 {[%clk 0:00:13]}  Re3 {[%clk 0:01:46]} 32. h4 {[%clk 0:00:09]}  Qe7 {[%clk 0:01:46]} 33. Rf2 {[%clk 0:00:08]}  Qxh4+ {[%clk 0:01:46]} 34. Kg2 {[%clk 0:00:09]}  Qg5 {[%clk 0:01:41]} 35. Qxa4 {[%clk 0:00:09]}  b6 {[%clk 0:01:29]} 36. Qd7 {[%clk 0:00:08]}  R8e7 {[%clk 0:01:29]} 37. Qc8+ {[%clk 0:00:08]}  Kg7 {[%clk 0:01:29]} 38. b4 {[%clk 0:00:09]}  Qe5 {[%clk 0:01:29]} 39. c5 {[%clk 0:00:08]}  dxc5 {[%clk 0:01:29]} 40. bxc5 {[%clk 0:00:09]}  bxc5 {[%clk 0:01:29]} 41. a4 {[%clk 0:00:09]}  Ra3 {[%clk 0:01:28]} 42. Qa6 {[%clk 0:00:06]}  Qd4 {[%clk 0:01:26]} 43. d6 {[%clk 0:00:05]}  cxd6 {[%clk 0:01:25]} 44. Qb5 {[%clk 0:00:03]}  Ree3 {[%clk 0:01:23]} 45. a5 {[%clk 0:00:03]}  Rxf3 {[%clk 0:01:23]} 46. Rxf3 {[%clk 0:00:04]}  Qxg4+ {[%clk 0:01:23]} 47. Kh2 {[%clk 0:00:04]} 0-1


[Site "https://www.chess.com"]

[Event "Titled Tuesday Blitz March 28 Early 2023"]
[White "Sochacki, Christophe"]
[Black "Devaev, Alexander"]
[WhiteFideId "662569"]
[BlackFideId "4169395"]
[WhiteElo "2474"]
[BlackElo "2225"]
[Result "1-0"]
[Round "03"]
[TimeControl "180+2"]
[Date "2023.03.28"]
[WhiteClock "0:00:53"]
[BlackClock "0:00:18"]

1. d4 {[%clk 0:02:52]}  Nf6 {[%clk 0:02:59]} 2. Bg5 {[%clk 0:02:49]}  Ne4 {[%clk 0:02:58]} 3. Bf4 {[%clk 0:02:49]}  c5 {[%clk 0:02:58]} 4. f3 {[%clk 0:02:48]}  Nf6 {[%clk 0:02:58]} 5. d5 {[%clk 0:02:48]}  d6 {[%clk 0:02:58]} 6. e4 {[%clk 0:02:47]}  a6 {[%clk 0:02:58]} 7. c4 {[%clk 0:02:47]}  e5 {[%clk 0:02:10]} 8. Be3 {[%clk 0:02:34]}  Be7 {[%clk 0:02:04]} 9. g4 {[%clk 0:02:31]}  Nfd7 {[%clk 0:01:37]} 10. Qd2 {[%clk 0:02:27]}  h6 {[%clk 0:01:37]} 11. Nc3 {[%clk 0:02:26]}  Bg5 {[%clk 0:01:38]} 12. h4 {[%clk 0:02:23]}  Bxh4+ {[%clk 0:01:37]} 13. Kd1 {[%clk 0:02:22]}  Rg8 {[%clk 0:01:27]} 14. Nh3 {[%clk 0:02:15]}  Nf8 {[%clk 0:01:27]} 15. Bd3 {[%clk 0:02:07]}  Nh7 {[%clk 0:01:27]} 16. Kc2 {[%clk 0:02:05]}  Nd7 {[%clk 0:01:17]} 17. a3 {[%clk 0:02:04]}  Ndf8 {[%clk 0:01:05]} 18. b4 {[%clk 0:02:03]}  b6 {[%clk 0:01:05]} 19. f4 {[%clk 0:01:38]}  exf4 {[%clk 0:00:47]} 20. Nxf4 {[%clk 0:01:33]}  Bg5 {[%clk 0:00:39]} 21. Rae1 {[%clk 0:01:19]}  Bxf4 {[%clk 0:00:22]} 22. Bxf4 {[%clk 0:01:18]}  Ng6 {[%clk 0:00:23]} 23. e5 {[%clk 0:01:16]}  dxe5 {[%clk 0:00:20]} 24. Bxe5 {[%clk 0:01:15]}  Kf8 {[%clk 0:00:21]} 25. Bxg6 {[%clk 0:01:08]}  fxg6 {[%clk 0:00:21]} 26. Rhf1+ {[%clk 0:01:07]}  Nf6 {[%clk 0:00:20]} 27. Bxf6 {[%clk 0:00:59]}  gxf6 {[%clk 0:00:21]} 28. Qxh6+ {[%clk 0:00:59]}  Kf7 {[%clk 0:00:22]} 29. Ne4 {[%clk 0:00:54]}  Bxg4 {[%clk 0:00:18]} 30. Ng5# {[%clk 0:00:53]} 1-0


[Site "https://www.chess.com"]

[Event "Titled Tuesday Blitz March 28 Early 2023"]
[White "Seemann, Jakub"]
[Black "Liu, Casper"]
[WhiteFideId "21874697"]
[BlackFideId "1454153"]
[WhiteElo "2364"]
[BlackElo "2221"]
[Result "0-1"]
[Round "03"]
[TimeControl "180+2"]
[Date "2023.03.28"]
[WhiteClock "0:00:07"]
[BlackClock "0:00:05"]

1. c4 {[%clk 0:03:00]}  Nc6 {[%clk 0:02:53]} 2. Nc3 {[%clk 0:03:00]}  e5 {[%clk 0:02:52]} 3. g3 {[%clk 0:03:00]}  d6 {[%clk 0:02:52]} 4. Bg2 {[%clk 0:03:01]}  Bd7 {[%clk 0:02:52]} 5. e3 {[%clk 0:03:01]}  Qc8 {[%clk 0:02:53]} 6. h3 {[%clk 0:03:01]}  h5 {[%clk 0:02:53]} 7. Nge2 {[%clk 0:03:01]}  h4 {[%clk 0:02:51]} 8. g4 {[%clk 0:03:02]}  f5 {[%clk 0:02:52]} 9. gxf5 {[%clk 0:03:01]}  Bxf5 {[%clk 0:02:53]} 10. b3 {[%clk 0:03:01]}  Nb4 {[%clk 0:02:53]} 11. e4 {[%clk 0:02:48]}  Nd3+ {[%clk 0:02:52]} 12. Kf1 {[%clk 0:02:49]}  Be6 {[%clk 0:02:46]} 13. Qc2 {[%clk 0:02:48]}  Nb4 {[%clk 0:02:37]} 14. Qd1 {[%clk 0:02:45]}  Be7 {[%clk 0:02:35]} 15. d4 {[%clk 0:02:45]}  Nf6 {[%clk 0:02:33]} 16. a3 {[%clk 0:02:42]}  exd4 {[%clk 0:02:31]} 17. Nxd4 {[%clk 0:02:41]}  Nc6 {[%clk 0:02:30]} 18. Be3 {[%clk 0:02:32]}  O-O {[%clk 0:02:23]} 19. Kg1 {[%clk 0:02:33]}  Ne5 {[%clk 0:02:20]} 20. f4 {[%clk 0:02:32]}  Nc6 {[%clk 0:02:08]} 21. Qd3 {[%clk 0:02:30]}  Nh5 {[%clk 0:01:59]} 22. Nxe6 {[%clk 0:02:29]}  Qxe6 {[%clk 0:01:59]} 23. Nd5 {[%clk 0:02:30]}  Bf6 {[%clk 0:01:43]} 24. e5 {[%clk 0:02:27]}  dxe5 {[%clk 0:01:40]} 25. Nxc7 {[%clk 0:02:26]}  Qe7 {[%clk 0:01:27]} 26. Nd5 {[%clk 0:02:20]}  Qd8 {[%clk 0:01:21]} 27. Rd1 {[%clk 0:01:52]}  exf4 {[%clk 0:01:07]} 28. Bc5 {[%clk 0:01:51]}  Re8 {[%clk 0:00:57]} 29. Qg6 {[%clk 0:01:41]}  Ng3 {[%clk 0:00:57]} 30. Rh2 {[%clk 0:01:20]}  Ne5 {[%clk 0:00:56]} 31. Nxf6+ {[%clk 0:01:10]}  Qxf6 {[%clk 0:00:57]} 32. Bd5+ {[%clk 0:01:08]}  Kh8 {[%clk 0:00:54]} 33. Qxf6 {[%clk 0:01:08]}  gxf6 {[%clk 0:00:55]} 34. Rf2 {[%clk 0:01:06]}  Rad8 {[%clk 0:00:51]} 35. Bd4 {[%clk 0:01:05]}  f3 {[%clk 0:00:44]} 36. Kh2 {[%clk 0:01:00]}  Rd7 {[%clk 0:00:23]} 37. Bxa7 {[%clk 0:00:34]}  f5 {[%clk 0:00:08]} 38. Bd4 {[%clk 0:00:34]}  Kh7 {[%clk 0:00:09]} 39. Bxe5 {[%clk 0:00:29]}  Rxe5 {[%clk 0:00:10]} 40. Bg8+ {[%clk 0:00:17]}  Kxg8 {[%clk 0:00:08]} 41. Rxd7 {[%clk 0:00:17]}  Re2 {[%clk 0:00:04]} 42. Kg1 {[%clk 0:00:07]}  Re1+ {[%clk 0:00:04]} 43. Kh2 {[%clk 0:00:07]}  Rh1# {[%clk 0:00:05]} 0-1


[Site "https://www.chess.com"]

[Event "Titled Tuesday Blitz March 28 Early 2023"]
[White "Gontcharov, Vladislav"]
[Black "Rios Escobar, Adan"]
[WhiteFideId "4123492"]
[BlackFideId "3403645"]
[WhiteElo "2470"]
[BlackElo "2415"]
[Result "1-0"]
[Round "03"]
[TimeControl "180+2"]
[Date "2023.03.28"]
[WhiteClock "0:00:05"]
[BlackClock "0:00:02"]

1. d4 {[%clk 0:03:00]}  Nf6 {[%clk 0:02:59]} 2. c4 {[%clk 0:03:00]}  g6 {[%clk 0:02:59]} 3. Nc3 {[%clk 0:03:00]}  Bg7 {[%clk 0:03:00]} 4. e4 {[%clk 0:03:00]}  d6 {[%clk 0:03:00]} 5. Nf3 {[%clk 0:03:00]}  O-O {[%clk 0:03:00]} 6. h3 {[%clk 0:02:56]}  Na6 {[%clk 0:02:14]} 7. Bg5 {[%clk 0:02:49]}  h6 {[%clk 0:02:13]} 8. Be3 {[%clk 0:02:48]}  e5 {[%clk 0:02:11]} 9. d5 {[%clk 0:02:48]}  Nh5 {[%clk 0:02:01]} 10. Nd2 {[%clk 0:02:42]}  Qe8 {[%clk 0:01:56]} 11. g4 {[%clk 0:02:03]}  Nf4 {[%clk 0:01:55]} 12. Qc2 {[%clk 0:02:02]}  Bd7 {[%clk 0:01:35]} 13. a3 {[%clk 0:01:57]}  Nc5 {[%clk 0:01:27]} 14. Bxc5 {[%clk 0:01:48]}  dxc5 {[%clk 0:01:28]} 15. O-O-O {[%clk 0:01:48]}  a6 {[%clk 0:01:23]} 16. Kb1 {[%clk 0:01:45]}  b5 {[%clk 0:01:22]} 17. cxb5 {[%clk 0:01:32]}  axb5 {[%clk 0:01:22]} 18. Ne2 {[%clk 0:01:32]}  Qe7 {[%clk 0:01:07]} 19. Rc1 {[%clk 0:01:27]}  c4 {[%clk 0:00:57]} 20. Ng3 {[%clk 0:01:26]}  Rfb8 {[%clk 0:00:49]} 21. Ka1 {[%clk 0:01:08]}  b4 {[%clk 0:00:45]} 22. Nxc4 {[%clk 0:01:08]}  bxa3 {[%clk 0:00:43]} 23. b3 {[%clk 0:01:08]}  Qb4 {[%clk 0:00:35]} 24. Ka2 {[%clk 0:01:03]}  Ra7 {[%clk 0:00:25]} 25. Bd3 {[%clk 0:00:58]}  Rab7 {[%clk 0:00:19]} 26. Rb1 {[%clk 0:00:58]}  Qc5 {[%clk 0:00:17]} 27. f3 {[%clk 0:00:35]}  Bb5 {[%clk 0:00:11]} 28. Rhd1 {[%clk 0:00:32]}  Nxh3 {[%clk 0:00:07]} 29. Bf1 {[%clk 0:00:28]}  Nf4 {[%clk 0:00:07]} 30. Rdc1 {[%clk 0:00:20]}  Bxc4 {[%clk 0:00:06]} 31. Bxc4 {[%clk 0:00:19]}  Qe3 {[%clk 0:00:05]} 32. Rf1 {[%clk 0:00:16]}  Qd4 {[%clk 0:00:04]} 33. Rfd1 {[%clk 0:00:14]}  Qb6 {[%clk 0:00:04]} 34. Nf1 {[%clk 0:00:10]}  Qg1 {[%clk 0:00:04]} 35. Qc3 {[%clk 0:00:09]}  Qf2+ {[%clk 0:00:04]} 36. Rd2 {[%clk 0:00:07]}  Qc5 {[%clk 0:00:03]} 37. Ne3 {[%clk 0:00:07]}  Qb6 {[%clk 0:00:03]} 38. Rbd1 {[%clk 0:00:06]}  Qd6 {[%clk 0:00:02]} 39. Nc2 {[%clk 0:00:05]}  Bf8 {[%clk 0:00:02]} 40. b4 {[%clk 0:00:05]}  Rxb4 {[%clk 0:00:01]} 41. Nxb4 {[%clk 0:00:05]}  Rxb4 {[%clk 0:00:02]} 42. Bb3 {[%clk 0:00:05]}  Qe7 {[%clk 0:00:02]} 43. Rc2 {[%clk 0:00:04]}  Qd6 {[%clk 0:00:02]} 44. Qc6 {[%clk 0:00:04]}  Qe7 {[%clk 0:00:02]} 45. d6 {[%clk 0:00:04]}  Qe8 {[%clk 0:00:02]} 46. dxc7 {[%clk 0:00:04]}  Qc8 {[%clk 0:00:02]} 47. Qd7 {[%clk 0:00:04]}  Qb7 {[%clk 0:00:02]} 48. Qxf7+ {[%clk 0:00:04]}  Kh8 {[%clk 0:00:02]} 49. Qg8# {[%clk 0:00:05]} 1-0


[Site "https://www.chess.com"]

[Event "Titled Tuesday Blitz March 28 Early 2023"]
[White "Maxfan2008"]
[Black "Demin, Vladimir"]
[BlackFideId "4167457"]
[WhiteElo "2410"]
[BlackElo "2604"]
[Result "1/2-1/2"]
[Round "03"]
[TimeControl "180+2"]
[Date "2023.03.28"]
[WhiteClock "0:00:06"]
[BlackClock "0:00:07"]

1. d4 {[%clk 0:03:00]}  d5 {[%clk 0:02:59]} 2. c4 {[%clk 0:03:01]}  e6 {[%clk 0:03:00]} 3. Nc3 {[%clk 0:03:01]}  Nf6 {[%clk 0:02:58]} 4. cxd5 {[%clk 0:03:02]}  exd5 {[%clk 0:02:59]} 5. Bg5 {[%clk 0:03:02]}  Be7 {[%clk 0:02:59]} 6. e3 {[%clk 0:03:03]}  h6 {[%clk 0:02:59]} 7. Bh4 {[%clk 0:03:01]}  Bg4 {[%clk 0:02:59]} 8. Qb3 {[%clk 0:03:01]}  Nbd7 {[%clk 0:02:48]} 9. Bd3 {[%clk 0:02:31]}  O-O {[%clk 0:02:44]} 10. h3 {[%clk 0:02:28]}  Be6 {[%clk 0:02:44]} 11. Nge2 {[%clk 0:02:28]}  c5 {[%clk 0:02:43]} 12. Qc2 {[%clk 0:02:20]}  c4 {[%clk 0:02:24]} 13. Bf5 {[%clk 0:02:20]}  a6 {[%clk 0:02:21]} 14. Bxe6 {[%clk 0:02:18]}  fxe6 {[%clk 0:02:20]} 15. Nf4 {[%clk 0:02:17]}  Qb6 {[%clk 0:02:13]} 16. O-O {[%clk 0:02:10]}  Rf7 {[%clk 0:02:09]} 17. Ng6 {[%clk 0:02:00]}  Bb4 {[%clk 0:01:51]} 18. Ne2 {[%clk 0:01:59]}  Ne4 {[%clk 0:01:39]} 19. Nef4 {[%clk 0:01:55]}  Re8 {[%clk 0:01:35]} 20. f3 {[%clk 0:01:51]}  Ng5 {[%clk 0:01:33]} 21. Bf2 {[%clk 0:01:47]}  Bd6 {[%clk 0:01:24]} 22. h4 {[%clk 0:01:39]}  Bxf4 {[%clk 0:01:24]} 23. Nxf4 {[%clk 0:01:34]}  Nh7 {[%clk 0:01:23]} 24. Ng6 {[%clk 0:01:32]}  Nhf6 {[%clk 0:01:21]} 25. Rae1 {[%clk 0:01:29]}  Nf8 {[%clk 0:01:07]} 26. Ne5 {[%clk 0:01:28]}  Rc7 {[%clk 0:01:02]} 27. Bg3 {[%clk 0:01:19]}  Rcc8 {[%clk 0:00:50]} 28. Qf2 {[%clk 0:01:13]}  N6d7 {[%clk 0:00:48]} 29. e4 {[%clk 0:01:07]}  Nxe5 {[%clk 0:00:47]} 30. Bxe5 {[%clk 0:01:07]}  Nd7 {[%clk 0:00:42]} 31. f4 {[%clk 0:01:05]}  Nxe5 {[%clk 0:00:42]} 32. fxe5 {[%clk 0:01:04]}  Rf8 {[%clk 0:00:42]} 33. Qe3 {[%clk 0:01:01]}  Qc6 {[%clk 0:00:38]} 34. Rxf8+ {[%clk 0:00:53]}  Rxf8 {[%clk 0:00:36]} 35. exd5 {[%clk 0:00:54]}  Qxd5 {[%clk 0:00:36]} 36. Qe4 {[%clk 0:00:52]}  Qxe4 {[%clk 0:00:35]} 37. Rxe4 {[%clk 0:00:53]}  Rd8 {[%clk 0:00:35]} 38. Kf2 {[%clk 0:00:52]}  Kf7 {[%clk 0:00:25]} 39. Ke3 {[%clk 0:00:52]}  Ke7 {[%clk 0:00:25]} 40. Rg4 {[%clk 0:00:52]}  Rg8 {[%clk 0:00:24]} 41. Rg6 {[%clk 0:00:50]}  b5 {[%clk 0:00:21]} 42. Ke4 {[%clk 0:00:46]}  Kf7 {[%clk 0:00:21]} 43. h5 {[%clk 0:00:46]}  Rd8 {[%clk 0:00:22]} 44. Rg3 {[%clk 0:00:43]}  a5 {[%clk 0:00:21]} 45. Ra3 {[%clk 0:00:37]}  a4 {[%clk 0:00:13]} 46. Rf3+ {[%clk 0:00:37]}  Ke7 {[%clk 0:00:13]} 47. a3 {[%clk 0:00:38]}  Rd7 {[%clk 0:00:12]} 48. Rg3 {[%clk 0:00:37]}  Kd8 {[%clk 0:00:11]} 49. Rg6 {[%clk 0:00:34]}  Re7 {[%clk 0:00:11]} 50. d5 {[%clk 0:00:31]}  exd5+ {[%clk 0:00:12]} 51. Kxd5 {[%clk 0:00:32]}  Rd7+ {[%clk 0:00:13]} 52. Kc5 {[%clk 0:00:29]}  Rd2 {[%clk 0:00:12]} 53. Kxb5 {[%clk 0:00:28]}  Rxb2+ {[%clk 0:00:12]} 54. Kxc4 {[%clk 0:00:28]}  Rb3 {[%clk 0:00:10]} 55. Rxg7 {[%clk 0:00:21]}  Rxa3 {[%clk 0:00:10]} 56. Kb4 {[%clk 0:00:22]}  Re3 {[%clk 0:00:09]} 57. g4 {[%clk 0:00:14]}  Rxe5 {[%clk 0:00:07]} 58. Rg6 {[%clk 0:00:14]}  Re4+ {[%clk 0:00:07]} 59. Ka3 {[%clk 0:00:14]}  Ke7 {[%clk 0:00:07]} 60. Rg7+ {[%clk 0:00:07]}  Kf6 {[%clk 0:00:07]} 61. Rg6+ {[%clk 0:00:08]}  Kf7 {[%clk 0:00:07]} 62. g5 {[%clk 0:00:06]}  hxg5 {[%clk 0:00:07]} 63. Rxg5 {[%clk 0:00:07]}  Rh4 {[%clk 0:00:07]} 64. Ra5 {[%clk 0:00:07]}  Kg7 {[%clk 0:00:07]} 65. Ra7+ {[%clk 0:00:06]}  Kh6 {[%clk 0:00:07]} 66. Ra5 {[%clk 0:00:07]}  Rg4 {[%clk 0:00:06]} 67. Rb5 {[%clk 0:00:05]}  Rh4 {[%clk 0:00:06]} 68. Rc5 {[%clk 0:00:05]}  Rxh5 {[%clk 0:00:06]} 69. Rc6+ {[%clk 0:00:05]}  Kg7 {[%clk 0:00:05]} 70. Kxa4 {[%clk 0:00:05]}  Rf5 {[%clk 0:00:05]} 71. Rb6 {[%clk 0:00:05]}  Rf7 {[%clk 0:00:06]} 72. Ra6 {[%clk 0:00:05]}  Rf5 {[%clk 0:00:06]} 73. Rb6 {[%clk 0:00:05]}  Rf7 {[%clk 0:00:07]} 74. Rb4 {[%clk 0:00:06]}  Rf6 {[%clk 0:00:08]} 75. Kb3 {[%clk 0:00:07]}  Kf7 {[%clk 0:00:08]} 76. Rd4 {[%clk 0:00:08]}  Kg6 {[%clk 0:00:08]} 77. Kc3 {[%clk 0:00:09]}  Kf5 {[%clk 0:00:09]} 78. Rd5+ {[%clk 0:00:09]}  Ke4 {[%clk 0:00:09]} 79. Ra5 {[%clk 0:00:10]}  Rc6+ {[%clk 0:00:09]} 80. Kb4 {[%clk 0:00:10]}  Kd4 {[%clk 0:00:09]} 81. Rb5 {[%clk 0:00:11]}  Rc8 {[%clk 0:00:09]} 82. Rb7 {[%clk 0:00:10]}  Rc1 {[%clk 0:00:09]} 83. Re7 {[%clk 0:00:09]}  Rb1+ {[%clk 0:00:08]} 84. Ka3 {[%clk 0:00:09]}  Kc5 {[%clk 0:00:08]} 85. Re5+ {[%clk 0:00:08]}  Kc4 {[%clk 0:00:08]} 86. Re4+ {[%clk 0:00:07]}  Kd3 {[%clk 0:00:07]} 87. Re8 {[%clk 0:00:06]}  Rb7 {[%clk 0:00:08]} 88. Rd8+ {[%clk 0:00:06]}  Kc3 {[%clk 0:00:07]} 89. Rc8+ {[%clk 0:00:06]}  Kd4 {[%clk 0:00:08]} 90. Rc6 {[%clk 0:00:06]}  Kd5 {[%clk 0:00:08]} 91. Rc2 {[%clk 0:00:06]}  Rb1 {[%clk 0:00:08]} 92. Rb2 {[%clk 0:00:06]}  Rc1 {[%clk 0:00:07]} 93. Rd2+ {[%clk 0:00:06]}  Kc4 {[%clk 0:00:07]} 94. Kb2 {[%clk 0:00:06]}  Rh1 {[%clk 0:00:07]} 95. Rg2 {[%clk 0:00:06]}  Rh4 {[%clk 0:00:06]} 96. Rf2 {[%clk 0:00:06]}  Kb4 {[%clk 0:00:07]} 97. Rg2 {[%clk 0:00:06]}  Rc4 {[%clk 0:00:07]} 98. Rf2 {[%clk 0:00:06]}  Rd4 {[%clk 0:00:07]} 99. Rg2 {[%clk 0:00:06]}  Rc4 {[%clk 0:00:08]} 100. Rf2 {[%clk 0:00:06]}  Ka4 {[%clk 0:00:08]} 101. Rg2 {[%clk 0:00:06]}  Rb4+ {[%clk 0:00:08]} 102. Kc2 {[%clk 0:00:05]}  Rh4 {[%clk 0:00:08]} 103. Rf2 {[%clk 0:00:05]}  Rg4 {[%clk 0:00:08]} 104. Kb2 {[%clk 0:00:05]}  Kb4 {[%clk 0:00:08]} 105. Re2 {[%clk 0:00:05]}  Ka4 {[%clk 0:00:08]} 106. Rf2 {[%clk 0:00:05]}  Rb4+ {[%clk 0:00:08]} 107. Ka2 {[%clk 0:00:06]}  Rh4 {[%clk 0:00:08]} 108. Rb2 {[%clk 0:00:06]}  Rh3 {[%clk 0:00:08]} 109. Rd2 {[%clk 0:00:06]}  Ra3+ {[%clk 0:00:08]} 110. Kb2 {[%clk 0:00:06]}  Rb3+ {[%clk 0:00:08]} 111. Kc2 {[%clk 0:00:06]}  Ka3 {[%clk 0:00:07]} 112. Rd3 {[%clk 0:00:05]}  Rxd3 {[%clk 0:00:07]} 113. Kxd3 {[%clk 0:00:06]} 1/2-1/2


[Site "https://www.chess.com"]

[Event "Titled Tuesday Blitz March 28 Early 2023"]
[White "Richter, Nils"]
[Black "Kozelov, Roman"]
[WhiteFideId "12990809"]
[BlackFideId "14133377"]
[WhiteElo "2381"]
[BlackElo "2149"]
[Result "1-0"]
[Round "03"]
[TimeControl "180+2"]
[Date "2023.03.28"]
[WhiteClock "0:01:01"]
[BlackClock "0:00:06"]

1. b3 {[%clk 0:03:00]}  b5 {[%clk 0:02:59]} 2. Bb2 {[%clk 0:03:01]}  Bb7 {[%clk 0:02:59]} 3. e3 {[%clk 0:03:01]}  b4 {[%clk 0:02:59]} 4. Nf3 {[%clk 0:03:00]}  c5 {[%clk 0:02:58]} 5. a3 {[%clk 0:02:59]}  Nf6 {[%clk 0:02:57]} 6. axb4 {[%clk 0:02:58]}  cxb4 {[%clk 0:02:57]} 7. d4 {[%clk 0:02:52]}  e6 {[%clk 0:02:57]} 8. Bd3 {[%clk 0:02:51]}  Be7 {[%clk 0:02:57]} 9. Nbd2 {[%clk 0:02:51]}  O-O {[%clk 0:02:57]} 10. O-O {[%clk 0:02:52]}  d6 {[%clk 0:02:48]} 11. e4 {[%clk 0:02:51]}  Qd7 {[%clk 0:02:44]} 12. Qe2 {[%clk 0:02:51]}  Rc8 {[%clk 0:02:40]} 13. h4 {[%clk 0:02:47]}  h6 {[%clk 0:02:33]} 14. Rfd1 {[%clk 0:02:43]}  a5 {[%clk 0:02:29]} 15. Nf1 {[%clk 0:02:42]}  a4 {[%clk 0:02:12]} 16. bxa4 {[%clk 0:02:41]}  Rxa4 {[%clk 0:02:12]} 17. Bb5 {[%clk 0:02:40]}  Rxa1 {[%clk 0:02:06]} 18. Bxd7 {[%clk 0:02:40]}  Rxd1 {[%clk 0:02:04]} 19. Bxc8 {[%clk 0:02:33]}  Rxf1+ {[%clk 0:02:03]} 20. Qxf1 {[%clk 0:02:32]}  Bxc8 {[%clk 0:02:04]} 21. Qb5 {[%clk 0:02:27]}  Nfd7 {[%clk 0:01:51]} 22. e5 {[%clk 0:02:24]}  dxe5 {[%clk 0:01:46]} 23. Nxe5 {[%clk 0:02:23]}  Ba6 {[%clk 0:01:41]} 24. Qa5 {[%clk 0:02:15]}  Be2 {[%clk 0:01:25]} 25. Nxd7 {[%clk 0:02:06]}  Nxd7 {[%clk 0:01:24]} 26. Qa8+ {[%clk 0:02:06]}  Nf8 {[%clk 0:01:23]} 27. g3 {[%clk 0:02:01]}  Bc4 {[%clk 0:01:19]} 28. Bc1 {[%clk 0:01:59]}  Bd5 {[%clk 0:01:17]} 29. Qb8 {[%clk 0:01:59]}  Be4 {[%clk 0:01:14]} 30. Qc8 {[%clk 0:01:53]}  f6 {[%clk 0:00:54]} 31. Bd2 {[%clk 0:01:51]}  Kf7 {[%clk 0:00:53]} 32. Qc7 {[%clk 0:01:49]}  Ke8 {[%clk 0:00:45]} 33. Kf1 {[%clk 0:01:43]}  Ng6 {[%clk 0:00:37]} 34. Ke1 {[%clk 0:01:42]}  h5 {[%clk 0:00:30]} 35. Kd1 {[%clk 0:01:41]}  Nf8 {[%clk 0:00:27]} 36. Bxb4 {[%clk 0:01:39]}  Bxb4 {[%clk 0:00:24]} 37. Qb8+ {[%clk 0:01:39]}  Kf7 {[%clk 0:00:25]} 38. Qxb4 {[%clk 0:01:39]}  Nd7 {[%clk 0:00:18]} 39. c4 {[%clk 0:01:38]}  f5 {[%clk 0:00:14]} 40. Qd6 {[%clk 0:01:37]}  Nf6 {[%clk 0:00:14]} 41. Kc1 {[%clk 0:01:30]}  Ng4 {[%clk 0:00:12]} 42. Qf4 {[%clk 0:01:27]}  Nf6 {[%clk 0:00:09]} 43. Kb2 {[%clk 0:01:27]}  Ng4 {[%clk 0:00:08]} 44. Ka3 {[%clk 0:01:26]}  Nf6 {[%clk 0:00:09]} 45. Kb4 {[%clk 0:01:27]}  Ng4 {[%clk 0:00:09]} 46. Ka5 {[%clk 0:01:26]}  Nf6 {[%clk 0:00:09]} 47. Kb6 {[%clk 0:01:27]}  Nd7+ {[%clk 0:00:09]} 48. Kc7 {[%clk 0:01:25]}  Nf6 {[%clk 0:00:09]} 49. Kd8 {[%clk 0:01:23]}  Bd3 {[%clk 0:00:09]} 50. Qe5 {[%clk 0:01:11]}  Be4 {[%clk 0:00:07]} 51. Qc7+ {[%clk 0:01:07]}  Kg6 {[%clk 0:00:06]} 52. Ke7 {[%clk 0:01:01]} 1-0


[Site "https://www.chess.com"]